fUST/lending_fUST_20240930
["ID","MTS","AMOUNT","RATE_DAILY","PERIOD"]
[339528966,1727680248692,-500.0,0.00014396,2]
[339528967,1727680248702,-500.0,0.00014396,2]
[339528968,1727680248712,-500.0,0.00014396,2]
[339528969,1727680248721,-672.32,0.00014396,2]
[339528970,1727680248730,-500.0,0.00014396,2]
[339528971,1727680248739,-500.0,0.00014396,2]
[339528972,1727680248750,-1016.94,0.00014396,2]
[339528973,1727680248759,-500.0,0.00014396,2]
[339528974,1727680248768,-500.0,0.00014396,2]
[339528975,1727680248778,-455.61493297,0.00014396,2]
[339528976,1727680248787,-500.0,0.00014396,2]
[339528977,1727680248797,-500.0,0.00014396,2]
[339528978,1727680248807,-611.48131104,0.00014396,2]
[339528979,1727680248816,-500.0,0.00014396,2]
[339528980,1727680248826,-500.0,0.00014396,2]
[339528981,1727680248836,-1152.77,0.00014396,2]
[339528982,1727680248845,-622.29,0.00014396,2]
[339528983,1727680248854,-3977.0,0.00014396,2]
[339528984,1727680248864,-1899.06,0.00014396,2]
[339528985,1727680248874,-500.0,0.00014396,2]
[339528986,1727680248883,-646.0,0.00014396,2]
[339528987,1727680248893,-500.0,0.00014396,2]
[339528988,1727680248903,-2296.63,0.00014396,2]
[339528989,1727680248914,-541.31,0.00014396,2]
[339528990,1727680248924,-500.0,0.00014396,2]
[339528991,1727680248934,-500.0,0.00014396,2]
[339528992,1727680248943,-500.0,0.00014396,2]
[339528993,1727680248953,-500.0,0.00014396,2]
[339528994,1727680248962,-500.0,0.00014397,2]
[339528995,1727680248973,-500.0,0.00014397,2]
[339528996,1727680248982,-717.34,0.00014397,2]
[339528997,1727680248992,-500.0,0.00014397,2]
[339528998,1727680249001,-500.0,0.00014397,2]
[339528999,1727680249011,-500.0,0.00014397,2]
[339529000,1727680249020,-500.0,0.00014397,2]
[339529001,1727680249029,-500.0,0.00014397,2]
[339529002,1727680249039,-500.0,0.00014397,2]
[339529003,1727680249048,-535.14499859,0.00014397,2]
[339529004,1727680249058,-500.0,0.00014397,2]
[339529005,1727680249068,-500.0,0.00014397,2]
[339529006,1727680249078,-150.0,0.00014397,2]
[339529007,1727680249088,-500.0,0.00014397,2]
[339529008,1727680249098,-500.0,0.00014397,2]
[339529009,1727680249108,-500.0,0.00014397,2]
[339529010,1727680249118,-500.0,0.00014397,2]
[339529011,1727680249128,-531.53,0.00014397,2]
[339529012,1727680249138,-789.35,0.00014397,2]
[339529013,1727680249147,-500.0,0.00014397,2]
[339529014,1727680249157,-500.0,0.00014397,2]
[339529015,1727680249167,-500.0,0.00014397,2]
[339529016,1727680249177,-500.0,0.00014397,2]
[339529017,1727680249187,-500.0,0.00014397,2]
[339529018,1727680249198,-500.0,0.00014397,2]
[339529019,1727680249208,-1187.33,0.00014397,2]
[339529020,1727680249218,-500.0,0.00014397,2]
[339529021,1727680249227,-500.0,0.00014397,2]
[339529022,1727680249237,-500.0,0.00014397,2]
[339529023,1727680249247,-500.0,0.00014397,2]
[339529024,1727680249257,-500.0,0.00014397,2]
[339529025,1727680249266,-500.0,0.00014397,2]
[339529026,1727680249276,-500.0,0.00014397,2]
[339529027,1727680249286,-1020.38,0.00014397,2]
[339529028,1727680249296,-500.0,0.00014397,2]
[339529029,1727680249306,-500.0,0.00014397,2]
[339529030,1727680249316,-500.0,0.00014397,2]
[339529031,1727680249326,-500.0,0.00014397,2]
[339529032,1727680249335,-500.0,0.00014397,2]
[339529033,1727680249345,-500.0,0.00014397,2]
[339529034,1727680249354,-500.0,0.00014397,2]
[339529035,1727680249364,-877.51,0.00014397,2]
[339529036,1727680249374,-500.0,0.00014397,2]
[339529037,1727680249383,-500.0,0.00014397,2]
[339529038,1727680249393,-580.00359851,0.00014397,2]
[339529039,1727680249403,-500.0,0.00014397,2]
[339529040,1727680249416,-500.0,0.00014397,2]
[339529041,1727680249426,-500.0,0.00014397,2]
[339529042,1727680249435,-500.0,0.00014397,2]
[339529043,1727680249445,-677.79,0.00014397,2]
[339529044,1727680249454,-820.94,0.00014397,2]
[339529045,1727680249465,-407.09316848,0.00014397,2]
[339529046,1727680249476,-500.0,0.00014397,2]
[339529047,1727680249486,-500.0,0.00014397,2]
[339529048,1727680249496,-214.89894581,0.00014397,2]
[339529049,1727680249505,-641.16,0.00014397,2]
[339529050,1727680249516,-500.0,0.00014397,2]
[339529051,1727680249526,-500.0,0.00014397,2]
[339529052,1727680249535,-500.0,0.00014397,2]
[339529053,1727680249548,-530.69651116,0.00014397,2]
[339529054,1727680249558,-500.0,0.00014397,2]
[339529055,1727680249567,-373.66414725,0.00014397,2]
[339529056,1727680249577,-500.0,0.00014397,2]
[339529057,1727680249586,-508.22,0.00014397,2]
[339529058,1727680249596,-500.0,0.00014397,2]
[339529059,1727680249606,-500.0,0.00014397,2]
[339529060,1727680249616,-500.0,0.00014397,2]
[339529061,1727680249626,-500.0,0.00014397,2]
[339529062,1727680249636,-2581.56,0.00014397,2]
[339529063,1727680249646,-826.25,0.00014397,2]
[339529064,1727680249657,-500.0,0.00014397,2]
[339529065,1727680249667,-500.0,0.00014397,2]
[339529066,1727680249677,-517.81193335,0.00014397,2]
[339529067,1727680249687,-500.0,0.00014397,2]
[339529068,1727680249696,-898.56,0.00014397,2]
[339529069,1727680249706,-500.0,0.00014397,2]
[339529070,1727680249716,-500.0,0.00014397,2]
[339529071,1727680249727,-500.0,0.00014397,2]
[339529072,1727680249737,-500.0,0.00014397,2]
[339529073,1727680249746,-500.0,0.00014397,2]
[339529074,1727680249756,-500.0,0.00014397,2]
[339529075,1727680249766,-500.0,0.00014397,2]
[339529076,1727680249776,-500.0,0.00014397,2]
[339529077,1727680249785,-500.0,0.00014397,2]
[339529078,1727680249798,-500.0,0.00014397,2]
[339529079,1727680249808,-545.78,0.00014397,2]
[339529080,1727680249818,-328.24874825,0.00014397,2]
[339529081,1727680249829,-679.61,0.00014397,2]
[339529082,1727680249839,-500.0,0.00014397,2]
[339529083,1727680249849,-504.50173127,0.00014397,2]
[339529084,1727680249860,-500.0,0.00014397,2]
[339529085,1727680249870,-500.0,0.00014397,2]
[339529086,1727680249880,-500.0,0.00014397,2]
[339529087,1727680249890,-500.0,0.00014397,2]
[339529088,1727680249900,-500.0,0.00014397,2]
[339529089,1727680249911,-500.0,0.00014397,2]
[339529090,1727680249921,-500.0,0.00014397,2]
[339529091,1727680249931,-500.0,0.00014397,2]
[339529092,1727680249942,-627.1,0.00014397,2]
[339529093,1727680249952,-500.0,0.00014397,2]
[339529094,1727680249962,-500.0,0.00014397,2]
[339529095,1727680249973,-500.0,0.00014397,2]
[339529096,1727680249983,-500.0,0.00014397,2]
[339529097,1727680249993,-500.0,0.00014397,2]
[339529098,1727680250003,-500.0,0.00014397,2]
[339529099,1727680250013,-500.0,0.00014397,2]
[339529100,1727680250023,-500.0,0.00014397,2]
[339529101,1727680250033,-500.0,0.00014397,2]
[339529102,1727680250042,-500.0,0.00014397,2]
[339529103,1727680250052,-500.0,0.00014397,2]
[339529104,1727680250062,-500.0,0.00014397,2]
[339529105,1727680250071,-500.0,0.00014397,2]
[339529106,1727680250081,-500.0,0.00014397,2]
[339529107,1727680250090,-1158.1,0.00014397,2]
[339529108,1727680250100,-508.0,0.00014397,2]
[339529109,1727680250110,-500.0,0.00014397,2]
[339529110,1727680250120,-500.0,0.00014397,2]
[339529111,1727680250130,-283.15524528,0.00014397,2]
[339529112,1727680250140,-500.0,0.00014397,2]
[339529113,1727680250150,-602.26,0.00014397,2]
[339529114,1727680250161,-500.0,0.00014397,2]
[339529115,1727680250171,-500.0,0.00014397,2]
[339529116,1727680250180,-611.64,0.00014397,2]
[339529117,1727680250191,-500.0,0.00014397,2]
[339529118,1727680250200,-581.45954923,0.00014397,2]
[339529119,1727680250210,-500.0,0.00014397,2]
[339529120,1727680250220,-500.0,0.00014397,2]
[339529121,1727680250230,-546.22,0.00014397,2]
[339529122,1727680250241,-500.0,0.00014397,2]
[339529123,1727680250251,-500.0,0.00014397,2]
[339529124,1727680250261,-297.74579969,0.00014397,2]
[339529125,1727680250271,-500.0,0.00014397,2]
[339529126,1727680250281,-500.0,0.00014397,2]
[339529127,1727680250291,-500.0,0.00014397,2]
[339529128,1727680250301,-500.0,0.00014397,2]
[339529129,1727680250311,-500.0,0.00014397,2]
[339529130,1727680250321,-500.0,0.00014397,2]
[339529131,1727680250331,-789.18,0.00014397,2]
[339529132,1727680250342,-450.91210039,0.00014397,2]
[339529133,1727680250352,-500.0,0.00014397,2]
[339529134,1727680250362,-1774.31,0.00014397,2]
[339529135,1727680250371,-500.0,0.00014397,2]
[339529136,1727680250382,-500.0,0.00014397,2]
[339529137,1727680250392,-500.0,0.00014397,2]
[339529138,1727680250402,-500.0,0.00014397,2]
[339529139,1727680250413,-2092.12,0.00014397,2]
[339529140,1727680250424,-500.0,0.00014397,2]
[339529141,1727680250434,-500.0,0.00014397,2]
[339529142,1727680250444,-500.0,0.00014397,2]
[339529143,1727680250454,-632.08,0.00014397,2]
[339529144,1727680250467,-517.42,0.00014397,2]
[339529145,1727680250477,-347.86578853,0.00014397,2]
[339529146,1727680250487,-511.87395407,0.00014397,2]
[339529147,1727680250497,-500.0,0.00014397,2]
[339529148,1727680250507,-500.0,0.00014397,2]
[339529149,1727680250517,-500.0,0.00014397,2]
[339529150,1727680250527,-756.87,0.00014397,2]
[339529151,1727680250537,-500.0,0.00014397,2]
[339529152,1727680250549,-500.0,0.00014397,2]
[339529153,1727680250559,-513.20811323,0.00014397,2]
[339529154,1727680250569,-500.0,0.00014397,2]
[339529155,1727680250579,-500.0,0.00014397,2]
[339529156,1727680250590,-500.0,0.00014397,2]
[339529157,1727680250599,-500.0,0.00014397,2]
[339529158,1727680250608,-1162.29,0.00014397,2]
[339529159,1727680250618,-500.0,0.00014397,2]
[339529160,1727680250628,-500.0,0.00014397,2]
[339529161,1727680250638,-500.0,0.00014397,2]
[339529162,1727680250648,-500.0,0.00014397,2]
[339529163,1727680250659,-500.0,0.00014397,2]
[339529164,1727680250669,-500.0,0.00014397,2]
[339529165,1727680250679,-500.0,0.00014397,2]
[339529166,1727680250689,-500.0,0.00014397,2]
[339529167,1727680250699,-572.04,0.00014397,2]
[339529168,1727680250709,-500.0,0.00014397,2]
[339529169,1727680250719,-500.0,0.00014397,2]
[339529170,1727680250729,-500.0,0.00014397,2]
[339529171,1727680250739,-199.20222567,0.00014397,2]
[339529172,1727680250748,-362.23114972,0.00014397,2]
[339529173,1727680250758,-518.56,0.00014397,2]
[339529174,1727680250768,-500.0,0.00014397,2]
[339529175,1727680250778,-500.0,0.00014397,2]
[339529176,1727680250788,-500.0,0.00014397,2]
[339529177,1727680250799,-500.0,0.00014397,2]
[339529178,1727680250809,-500.0,0.00014397,2]
[339529179,1727680250820,-453.10576072,0.00014397,2]
[339529180,1727680250829,-298.70611641,0.00014397,2]
[339529181,1727680250839,-500.0,0.00014397,2]
[339529182,1727680250849,-500.0,0.00014397,2]
[339529183,1727680250859,-500.0,0.00014397,2]
[339529184,1727680250868,-500.0,0.00014397,2]
[339529185,1727680250878,-500.0,0.00014397,2]
[339529186,1727680250888,-1572.51,0.00014397,2]
[339529187,1727680250898,-500.0,0.00014397,2]
[339529188,1727680250908,-500.0,0.00014397,2]
[339529189,1727680250918,-497.32144202,0.00014397,2]
[339529190,1727680250928,-534.89,0.00014397,2]
[339529191,1727680250938,-500.0,0.00014397,2]
[339529192,1727680250948,-524.69,0.00014397,2]
[339529193,1727680250958,-500.0,0.00014397,2]
[339529194,1727680250969,-500.0,0.00014397,2]
[339529195,1727680250979,-500.0,0.00014397,2]
[339529196,1727680250989,-500.0,0.00014397,2]
[339529197,1727680250999,-500.0,0.00014397,2]
[339529198,1727680251009,-500.0,0.00014397,2]
[339529199,1727680251020,-513.00640737,0.00014397,2]
[339529200,1727680251030,-2352.11,0.00014397,2]
[339529201,1727680251041,-598.21,0.00014397,2]
[339529202,1727680251052,-500.0,0.00014397,2]
[339529203,1727680251063,-500.0,0.00014397,2]
[339529204,1727680251074,-507.85898462,0.00014397,2]
[339529205,1727680251084,-951.31,0.00014397,2]
[339529206,1727680251093,-500.0,0.00014397,2]
[339529207,1727680251104,-1315.95,0.00014397,2]
[339529208,1727680251114,-590.21,0.00014397,2]
[339529209,1727680251123,-500.0,0.00014397,2]
[339529210,1727680251133,-500.0,0.00014397,2]
[339529211,1727680251142,-500.0,0.00014397,2]
[339529212,1727680251152,-548.03062871,0.00014397,2]
[339529213,1727680251164,-492.93015338,0.00014397,2]
[339529214,1727680251174,-500.0,0.00014397,2]
[339529215,1727680251184,-500.0,0.00014397,2]
[339529216,1727680251194,-508.81,0.00014397,2]
[339529217,1727680251204,-368.42124442,0.00014397,2]
[339529218,1727680251784,-295.13875558,0.00014397,2]
[339529219,1727680251794,-500.0,0.00014397,2]
[339529220,1727680251803,-500.0,0.00014397,2]
[339529221,1727680251812,-500.0,0.00014397,2]
[339529222,1727680251822,-509.0,0.00014397,2]
[339529223,1727680251831,-500.0,0.00014397,2]
[339529224,1727680251841,-500.0,0.00014397,2]
[339529225,1727680251851,-500.0,0.00014397,2]
[339529226,1727680251860,-1424.01,0.00014397,2]
[339529227,1727680251870,-500.0,0.00014397,2]
[339529228,1727680251879,-500.0,0.00014397,2]
[339529229,1727680251889,-500.0,0.00014397,2]
[339529230,1727680251900,-500.0,0.00014397,2]
[339529231,1727680251911,-500.0,0.00014397,2]
[339529232,1727680251920,-500.0,0.00014397,2]
[339529233,1727680251930,-373.36161496,0.00014397,2]
[339529234,1727680251940,-500.0,0.00014397,2]
[339529235,1727680251950,-500.0,0.00014397,2]
[339529236,1727680251959,-500.0,0.00014397,2]
[339529237,1727680251970,-500.0,0.00014397,2]
[339529238,1727680251980,-500.0,0.00014397,2]
[339529239,1727680251989,-500.0,0.00014397,2]
[339529240,1727680251999,-500.0,0.00014397,2]
[339529241,1727680252009,-766.82,0.00014397,2]
[339529242,1727680252019,-151.0,0.00014397,2]
[339529243,1727680252029,-500.0,0.00014397,2]
[339529244,1727680252039,-500.0,0.00014397,2]
[339529245,1727680252048,-500.0,0.00014397,2]
[339529246,1727680252058,-500.0,0.00014397,2]
[339529247,1727680252068,-500.0,0.00014397,2]
[339529248,1727680252078,-500.0,0.00014397,2]
[339529249,1727680252088,-440.86363836,0.00014397,2]
[339529250,1727680252098,-500.0,0.00014397,2]
[339529251,1727680252107,-492.08463743,0.00014397,2]
[339529252,1727680252118,-848.028938,0.00014397,2]
[339529253,1727680252127,-519.36315773,0.00014397,2]
[339529254,1727680252138,-500.0,0.00014397,2]
[339529255,1727680252148,-500.0,0.00014397,2]
[339529256,1727680252158,-131.0344384,0.00014397,2]
[339529257,1727680252566,-265.7137216,0.00014122,2]
[339529258,1727680252592,-252.2062784,0.00014122,2]
[339529259,1727680252602,-500.0,0.00014123,2]
[339529260,1727680252612,-500.0,0.00014123,2]
[339529261,1727680252622,-500.0,0.00014123,2]
[339529262,1727680252631,-630.22408774,0.00014397,2]
[339529263,1727680252644,-86.77041186,0.00014397,2]
[339529264,1727680252654,-511.91481008,0.00014397,2]
[339529265,1727680252665,-459.24372574,0.00014397,2]
[339529266,1727680252675,-500.0,0.00014397,2]
[339529267,1727680252684,-579.35,0.00014397,2]
[339529268,1727680252693,-500.0,0.00014397,2]
[339529269,1727680252703,-500.0,0.00014397,2]
[339529270,1727680252713,-1263.04,0.00014397,2]
[339529271,1727680252723,-500.0,0.00014397,2]
[339529272,1727680252733,-500.0,0.00014397,2]
[339529273,1727680252743,-542.24,0.00014397,2]
[339529274,1727680252752,-500.0,0.00014397,2]
[339529275,1727680252762,-500.0,0.00014397,2]
[339529276,1727680252772,-500.0,0.00014397,2]
[339529277,1727680252782,-500.0,0.00014397,2]
[339529278,1727680252792,-500.0,0.00014397,2]
[339529279,1727680252802,-500.0,0.00014397,2]
[339529280,1727680252811,-675.48,0.00014397,2]
[339529281,1727680252821,-2981.77,0.00014397,2]
[339529282,1727680252831,-661.98,0.00014397,2]
[339529283,1727680252840,-500.0,0.00014397,2]
[339529284,1727680252851,-818.17,0.00014397,2]
[339529285,1727680252860,-528.7,0.00014397,2]
[339529286,1727680252870,-163.072609,0.00014397,2]
[339529287,1727680252880,-3805.25,0.00014397,2]
[339529288,1727680252890,-500.0,0.00014397,2]
[339529289,1727680252900,-500.0,0.00014397,2]
[339529290,1727680252910,-163.072609,0.00014397,2]
[339529291,1727680252920,-500.0,0.00014397,2]
[339529292,1727680252929,-500.0,0.00014397,2]
[339529293,1727680252939,-500.0,0.00014397,2]
[339529294,1727680252950,-500.0,0.00014397,2]
[339529295,1727680252960,-500.0,0.00014397,2]
[339529296,1727680252970,-500.0,0.00014397,2]
[339529297,1727680252981,-853.17,0.00014397,2]
[339529298,1727680252991,-500.0,0.00014397,2]
[339529299,1727680253000,-500.0,0.00014397,2]
[339529300,1727680253010,-503.816295,0.00014397,2]
[339529301,1727680253019,-500.0,0.00014397,2]
[339529302,1727680253029,-500.0,0.00014397,2]
[339529303,1727680253039,-503.816295,0.00014397,2]
[339529304,1727680253048,-500.0,0.00014397,2]
[339529305,1727680253057,-500.0,0.00014397,2]
[339529306,1727680253067,-500.0,0.00014397,2]
[339529307,1727680253076,-500.0,0.00014397,2]
[339529308,1727680253086,-500.0,0.00014397,2]
[339529309,1727680253096,-500.0,0.00014397,2]
[339529310,1727680253105,-500.0,0.00014397,2]
[339529311,1727680253115,-500.0,0.00014397,2]
[339529312,1727680253124,-1856.46,0.00014397,2]
[339529313,1727680253134,-579.38,0.00014397,2]
[339529314,1727680253144,-654.28,0.00014397,2]
[339529315,1727680253154,-500.0,0.00014397,2]
[339529316,1727680253165,-500.0,0.00014397,2]
[339529317,1727680253175,-500.0,0.00014397,2]
[339529318,1727680253184,-500.0,0.00014398,2]
[339529319,1727680253194,-500.0,0.00014398,2]
[339529320,1727680253203,-1549.06,0.00014398,2]
[339529321,1727680253214,-500.0,0.00014398,2]
[339529322,1727680253223,-594.63,0.00014398,2]
[339529323,1727680253233,-500.0,0.00014398,2]
[339529324,1727680253242,-541.71,0.00014398,2]
[339529325,1727680253252,-1452.45,0.00014398,2]
[339529326,1727680253262,-500.0,0.00014398,2]
[339529327,1727680253272,-500.0,0.00014398,2]
[339529328,1727680253282,-500.0,0.00014398,2]
[339529329,1727680253292,-612.08,0.00014398,2]
[339529330,1727680253301,-588.18,0.00014398,2]
[339529331,1727680253311,-500.0,0.00014398,2]
[339529332,1727680253322,-617.46,0.00014398,2]
[339529333,1727680253331,-500.0,0.00014398,2]
[339529334,1727680253341,-500.0,0.00014398,2]
[339529335,1727680253351,-568.37302646,0.00014398,2]
[339529336,1727680253360,-500.0,0.00014398,2]
[339529337,1727680253370,-398.87235149,0.00014398,2]
[339529338,1727680253379,-500.0,0.00014398,2]
[339529339,1727680253389,-500.0,0.00014398,2]
[339529340,1727680253398,-500.0,0.00014398,2]
[339529341,1727680253408,-905.98,0.00014398,2]
[339529342,1727680253418,-500.0,0.00014398,2]
[339529343,1727680253427,-566.05,0.00014398,2]
[339529344,1727680253437,-835.09,0.00014398,2]
[339529345,1727680253446,-611.96,0.00014398,2]
[339529346,1727680253456,-500.0,0.00014398,2]
[339529347,1727680253468,-500.0,0.00014398,2]
[339529348,1727680253478,-1690.55,0.00014398,2]
[339529349,1727680253488,-500.0,0.00014398,2]
[339529350,1727680253498,-500.0,0.00014398,2]
[339529351,1727680253507,-500.0,0.00014398,2]
[339529352,1727680253516,-500.0,0.00014398,2]
[339529353,1727680253526,-2633.17,0.00014398,2]
[339529354,1727680253537,-1691.22,0.00014398,2]
[339529355,1727680253547,-762.6,0.00014398,2]
[339529356,1727680253557,-500.0,0.00014398,2]
[339529357,1727680253567,-500.0,0.00014398,2]
[339529358,1727680253638,-741.56,0.00014398,2]
[339529359,1727680253648,-816.54,0.00014398,2]
[339529360,1727680253658,-907.92,0.00014398,2]
[339529361,1727680253668,-500.0,0.00014398,2]
[339529362,1727680253677,-500.0,0.00014398,2]
[339529363,1727680253686,-697.54,0.00014398,2]
[339529364,1727680253697,-500.0,0.00014398,2]
[339529365,1727680253706,-500.0,0.00014398,2]
[339529366,1727680253716,-500.0,0.00014398,2]
[339529367,1727680253726,-500.0,0.00014398,2]
[339529368,1727680253737,-572.83379874,0.00014398,2]
[339529369,1727680253747,-500.0,0.00014398,2]
[339529370,1727680253756,-500.0,0.00014398,2]
[339529371,1727680253766,-500.0,0.00014398,2]
[339529372,1727680253775,-619.22,0.00014398,2]
[339529373,1727680253785,-2179.59,0.00014398,2]
[339529374,1727680253795,-2952.26,0.00014398,2]
[339529375,1727680253805,-500.0,0.00014398,2]
[339529376,1727680253814,-500.0,0.00014398,2]
[339529377,1727680253824,-556.57,0.00014398,2]
[339529378,1727680253834,-500.0,0.00014398,2]
[339529379,1727680253844,-539.62,0.00014398,2]
[339529380,1727680253853,-500.0,0.00014398,2]
[339529381,1727680253863,-558.07,0.00014398,2]
[339529382,1727680253873,-601.48,0.00014398,2]
[339529383,1727680253882,-500.0,0.00014398,2]
[339529384,1727680253892,-157.833404,0.00014398,2]
[339529385,1727680253901,-1354.52,0.00014398,2]
[339529386,1727680253913,-220.438095,0.00014398,2]
[339529387,1727680253922,-1440.75,0.00014398,2]
[339529388,1727680253932,-220.438095,0.00014398,2]
[339529389,1727680253942,-151.0,0.00014398,2]
[339529390,1727680253951,-151.0,0.00014398,2]
[339529391,1727680253961,-151.0,0.00014398,2]
[339529392,1727680253970,-309.114078,0.00014398,2]
[339529393,1727680253980,-309.114078,0.00014398,2]
[339529394,1727680253990,-151.0,0.00014398,2]
[339529395,1727680253999,-151.0,0.00014398,2]
[339529396,1727680254009,-373.782663,0.00014398,2]
[339529397,1727680254018,-373.782663,0.00014398,2]
[339529398,1727680254028,-159.221219,0.00014398,2]
[339529399,1727680254038,-159.221219,0.00014398,2]
[339529400,1727680254047,-581.735919,0.00014398,2]
[339529401,1727680254056,-581.735919,0.00014398,2]
[339529402,1727680254067,-642.951546,0.00014398,2]
[339529403,1727680254076,-642.951546,0.00014398,2]
[339529404,1727680254086,-1062.484411,0.00014398,2]
[339529405,1727680254096,-1062.484411,0.00014398,2]
[339529406,1727680254106,-4978.46105,0.00014398,2]
[339529407,1727680254115,-4978.46105,0.00014398,2]
[339529408,1727680254125,-151.0,0.00014399,2]
[339529409,1727680254135,-151.0,0.00014399,2]
[339529410,1727680254145,-199.13517,0.00014399,2]
[339529411,1727680254155,-1046.062606,0.00014399,2]
[339529412,1727680254165,-1046.062606,0.00014399,2]
[339529413,1727680254175,-151.0,0.00014399,2]
[339529414,1727680254185,-151.0,0.00014399,2]
[339529415,1727680254194,-653.570452,0.00014399,2]
[339529416,1727680254204,-653.570452,0.00014399,2]
[339529417,1727680254214,-1963.30789,0.00014399,2]
[339529418,1727680254224,-1963.30789,0.00014399,2]
[339529419,1727680254233,-1787.443551,0.00014399,2]
[339529420,1727680254242,-1787.443551,0.00014399,2]
[339529421,1727680254252,-587.780477,0.00014399,2]
[339529422,1727680254262,-587.780477,0.00014399,2]
[339529423,1727680254271,-308.91139697,0.000144,2]
[339529424,1727680254280,-500.0,0.000144,2]
[339529425,1727680254290,-500.0,0.000144,2]
[339529426,1727680254299,-500.0,0.000144,2]
[339529427,1727680254309,-500.0,0.000144,2]
[339529428,1727680254319,-500.0,0.000144,2]
[339529429,1727680254329,-500.0,0.000144,2]
[339529430,1727680254339,-500.0,0.000144,2]
[339529431,1727680254350,-504.1055798,0.000144,2]
[339529432,1727680254359,-500.0,0.000144,2]
[339529433,1727680254369,-500.0,0.000144,2]
[339529434,1727680254378,-575.0128302,0.000144,2]
[339529435,1727680254389,-500.0,0.000144,2]
[339529436,1727680254399,-500.0,0.000144,2]
[339529437,1727680254408,-500.0,0.000144,2]
[339529438,1727680254418,-232.73189227,0.000144,2]
[339529439,1727680254428,-500.0,0.000144,2]
[339529440,1727680254437,-500.0,0.000144,2]
[339529441,1727680254446,-500.0,0.000144,2]
[339529442,1727680254456,-500.0,0.000144,2]
[339529443,1727680254468,-500.0,0.000144,2]
[339529444,1727680254477,-500.0,0.000144,2]
[339529445,1727680254487,-500.0,0.000144,2]
[339529446,1727680254496,-500.0,0.000144,2]
[339529447,1727680254505,-771.26,0.000144,2]
[339529448,1727680254516,-500.0,0.000144,2]
[339529449,1727680254529,-500.0,0.000144,2]
[339529450,1727680254538,-500.0,0.000144,2]
[339529451,1727680254550,-500.0,0.000144,2]
[339529452,1727680254560,-500.0,0.000144,2]
[339529453,1727680254569,-584.81,0.000144,2]
[339529454,1727680254579,-500.0,0.000144,2]
[339529455,1727680254588,-500.0,0.000144,2]
[339529456,1727680254598,-500.0,0.000144,2]
[339529457,1727680254608,-500.0,0.000144,2]
[339529458,1727680254617,-500.0,0.000144,2]
[339529459,1727680254627,-500.0,0.000144,2]
[339529460,1727680254636,-500.0,0.000144,2]
[339529461,1727680254646,-717.33,0.000144,2]
[339529462,1727680254656,-500.0,0.000144,2]
[339529463,1727680254666,-500.0,0.000144,2]
[339529464,1727680254675,-500.0,0.000144,2]
[339529465,1727680254685,-500.0,0.000144,2]